Cogmind - Beta 13 @@@ ROGUE MODE // 2024.04.22 @ 01:26:17 Player: Haddoc Result: Destroyed by G-73 Enforcer with Phase Gun Performance ------------- Evolutions (9) 4500 Regions Visited (19) 3800 Robots Destroyed (50) 250 Value Destroyed (1037) 1037 Prototype IDs (5) 100 Alien Tech Used (0) 0 Bonus (1089) 1089 TOTAL SCORE: 10776 Bonus ------- Follower Combat Kills 329 Entered DSFs 500 Aligned with FarCom 300 Friendly Fire -40 Cogmind --------- Core Integrity 0/1600 Matter 82/300 Energy 92/100 System Corruption 3% Temperature Cool (10) Movement Flying (40) Location -1/Access Parts ------- > --- POWER (3) -------- (None) > --- PROPULSION (9) --- Xenon Bombardment Thruster > --- UTILITY (10) ----- Advanced Hacking Suite > --- WEAPON (3) ------- (None) > --- INVENTORY (5) ---- (None) Peak State ------------ > --- POWER ------------ Light Quantum Reactor Light Quantum Reactor > --- PROPULSION ------- Nuclear Pulse Thruster Nuclear Pulse Array Impulse Thruster Impulse Thruster Impulse Thruster Impulse Thruster Impulse Thruster Impulse Thruster > --- UTILITY ---------- Advanced Power Amplifier Advanced Cryofiber Web Coolant Network Advanced Coolant Injector Improved Sensor Array Improved Signal Interpreter Makeshift Light Armor Plating Improved Remote Force Field Advanced Hacking Suite > --- WEAPON ----------- Enhanced Nova Cannon > --- INVENTORY -------- Light Particle Reactor Q-thruster [Rating: 150] Favorites ----------- Power Light Nuclear Core Engine Ion Engine Power Core Light Nuclear Core Reactor Light Quantum Reactor Propulsion Aluminum Leg Treads Light Treads Leg Aluminum Leg Flight Unit Impulse Thruster Utility Large Storage Unit Device Improved Sensor Array Storage Large Storage Unit Processor Improved Signal Interpreter Hackware Improved Hacking Suite Protection Hardened Light Armor Plating Weapon Light Assault Rifle Energy Gun Particle Gun Energy Cannon HERF Cannon Ballistic Gun Light Assault Rifle Ballistic Cannon Hypervelocity Mass Driver Launcher Missile Launcher Impact Weapon Great Maul Build | -11 -10 -10 -9 -9 -9 -8 -8 -7 -6 -6 -6 -5 -4 -4 -4 -3 -3 -2 -1 ------- Run | Yrd Mat Min Mat Min Exi Min Mat Fac Fac Was Fac Fac Fac Upp Upp Res DSF Res Acc Slots Evolved 18 | . . . 2 . . . 2 2 2 . . 2 2 . . 2 . 2 2 Power 2 | . . . . . . . . 1 . . . . 1 . . . . . . Propulsion 7 | . . . 1 . . . 1 . 1 . . . 1 . . 1 . 1 1 Utility 8 | . . . 1 . . . 1 1 1 . . 2 . . . 1 . . 1 Weapon 1 | . . . . . . . . . . . . . . . . . . 1 . Parts Attached 98 | 6 5 6 8 . 1 3 9 6 2 6 1 4 3 6 4 2 4 9 13 Power 23 | 1 1 1 2 . . 1 . 1 . 5 . 1 1 1 3 1 . 2 2 Engine 1 | 1 . . . . . . . . . . . . . . . . . . . Core 14 | . 1 1 2 . . 1 . 1 . 4 . 1 . . 3 . . . . Reactor 8 | . . . . . . . . . . 1 . . 1 1 . 1 . 2 2 Propulsion 23 | 2 . 2 3 . . 1 1 . 1 . . . 1 4 . . 2 2 4 Treads 2 | 2 . . . . . . . . . . . . . . . . . . . Leg 6 | . . 2 3 . . 1 . . . . . . . . . . . . . Wheel . | . . . . . . . . . . . . . . . . . . . . Hover . | . . . . . . . . . . . . . . . . . . . . Flight 15 | . . . . . . . 1 . 1 . . . 1 4 . . 2 2 4 Utility 33 | 1 4 . 2 . . . 4 4 1 . 1 3 1 1 1 1 2 4 3 Device 15 | . . . . . . . 1 3 . . . 1 1 1 1 1 1 2 3 Storage 4 | 1 2 . . . . . . . . . . . . . . . . 1 . Processor 6 | . 2 . 2 . . . 2 . . . . . . . . . . . . Hackware 4 | . . . . . . . . . 1 . 1 1 . . . . . 1 . Protection 4 | . . . . . . . 1 1 . . . 1 . . . . 1 . . Artifact . | . . . . . . . . . . . . . . . . . . . . Weapon 19 | 2 . 3 1 . 1 1 4 1 . 1 . . . . . . . 1 4 Energy Gun 5 | . . . 1 . . 1 2 . . 1 . . . . . . . . . Energy Cannon 3 | . . . . . . . . . . . . . . . . . . 1 2 Ballistic Gun 6 | 2 . 3 . . 1 . . . . . . . . . . . . . . Ballistic Cannon 1 | . . . . . . . . . . . . . . . . . . . 1 Launcher 2 | . . . . . . . . 1 . . . . . . . . . . 1 Special Weapon . | . . . . . . . . . . . . . . . . . . . . Impact Weapon 2 | . . . . . . . 2 . . . . . . . . . . . . Slashing Weapon . | . . . . . . . . . . . . . . . . . . . . Piercing Weapon . | . . . . . . . . . . . . . . . . . . . . Special Melee Weapon . | . . . . . . . . . . . . . . . . . . . . Unidentified Prototypes 5 | . . . . . . . 2 . . 1 . . . . . . . . 2 Parts Lost 31 | . . . 2 . . 4 . . . . . . . 2 . . 3 . 20 Power 4 | . . . . . . 1 . . . . . . . . . . . . 3 Propulsion 15 | . . . 1 . . 2 . . . . . . . 1 . . 1 . 10 Utility 10 | . . . . . . . . . . . . . . 1 . . 2 . 7 Weapon 2 | . . . 1 . . 1 . . . . . . . . . . . . . Highest Loss Streak 19 | . . . 2 . . 4 . . . . . . . 1 . . 3 . 19 To Critical Strikes . | . . . . . . . . . . . . . . . . . . . . Average Slot Usage (%) 87 | . 97 100 98 100 100 88 72 76 80 80 80 81 73 75 84 78 73 75 56 Core 10 | . 7 14 11 11 11 11 9 15 13 13 13 10 10 10 10 7 . . . Treads 5 | . 28 11 . . . . . . . . . . . . . . . . . Leg 9 | . . 16 31 33 33 23 . . . . . . . . . . . . . Flight 7 | . . . . . . . 9 7 13 13 13 11 10 14 26 23 27 27 22 Device 4 | . . . . . . . 3 7 6 6 6 10 14 14 15 17 14 11 14 Storage 9 | . 14 14 11 11 11 11 9 7 6 6 6 5 5 3 . . . 2 . Processor 13 | . 11 14 22 22 22 22 18 15 13 13 11 5 5 5 5 4 4 4 3 Hackware 4 | . . . . . . . . . 6 6 7 17 15 15 15 14 14 14 5 Protection 1 | . . . . . . . 5 7 6 6 6 5 . . . . 2 4 2 Energy Gun 3 | . . . 2 11 11 18 14 . . . 6 5 5 5 5 4 4 2 . Ballistic Gun 11 | . 28 28 19 11 11 3 . . . . . . . . . . . . . Impact Weapon 1 | . . . . . . . 3 7 6 6 6 5 5 5 5 4 . . . Naked Turns . | . . . . . . . . . . . . . . . . . . . . Heaviest Build 63 | 13 28 28 29 29 29 31 37 46 46 48 45 49 49 49 33 34 40 63 57 Greatest Support 63 | 40 40 40 30 30 30 30 50 50 56 56 56 56 63 63 37 37 45 53 62 Greatest Overweight (x) 7 | 1 . 1 1 . . 2 . . . 7 . . . . . . 1 1 1 Average Overweight (x) . | . . . . . . . . . . . . . . . . . . . . Largest Inventory Capacity 15 | 8 15 15 15 15 15 15 15 15 15 15 15 15 15 15 5 5 5 10 10 Average Capacity 13 | 7 12 15 15 15 15 15 15 15 15 15 15 15 15 11 5 5 5 8 5 Most Carried 15 | 8 15 15 15 13 14 14 15 15 14 14 15 15 15 15 5 5 5 10 9 Average Carried 11 | 4 8 13 13 13 13 13 11 14 13 12 14 13 13 10 4 4 4 7 2 Final Capacity 15 | 8 15 15 15 15 15 15 15 15 15 15 15 15 15 5 5 5 5 10 5 Final Carried 15 | 5 15 12 13 13 14 13 14 15 14 13 15 14 15 5 4 4 4 9 . Class Distribution -------------------- 67% | Mutant 11% | Hacker-Mutant 10% | Hacker-Sprinter 7% | Scout Dominant Class ---------------- Mutant | -10/Materials Mutant | -10/Mines Mutant | -9/Materials Mutant | -9/Mines Mutant | -9/Exiles Mutant | -8/Mines Mutant | -8/Materials Mutant | -7/Factory Scout | -6/Factory Scout | -6/Waste Scout | -6/Factory Hacker-Mutant | -5/Factory Hacker-Mutant | -4/Factory Hacker-Mutant | -4/Upper Caves Hacker-Sprinter | -4/Upper Caves Hacker-Sprinter | -3/Research Hacker-Sprinter | -3/DSF Hacker-Sprinter | -2/Research Mutant | -1/Access Resources | -11 -10 -10 -9 -9 -9 -8 -8 -7 -6 -6 -6 -5 -4 -4 -4 -3 -3 -2 -1 ----------- Run | Yrd Mat Min Mat Min Exi Min Mat Fac Fac Was Fac Fac Fac Upp Upp Res DSF Res Acc Matter Collected 1579 | 412 114 256 109 65 . 32 120 . . 319 30 30 . 22 42 . . . 28 Remotely . | . . . . . . . . . . . . . . . . . . . . Salvage Created 1711 | 236 420 240 289 . . 154 161 . . 190 . 21 . . . . . . . Parts 119 | 22 25 34 25 . . 6 5 . . . . 2 . . . . . . . Haulers Intercepted . | . . . . . . . . . . . . . . . . . . . . Recyclers Shooed 5 | . 4 1 . . . . . . . . . . . . . . . . . Parts Field Recycled . | . . . . . . . . . . . . . . . . . . . . Retrieved Matter . | . . . . . . . . . . . . . . . . . . . . Parts Self-Destructed . | . . . . . . . . . . . . . . . . . . . . Prevented 3 | . . . . . . . . . . . . . . 3 . . . . . Kills | -11 -10 -10 -9 -9 -9 -8 -8 -7 -6 -6 -6 -5 -4 -4 -4 -3 -3 -2 -1 ------- Run | Yrd Mat Min Mat Min Exi Min Mat Fac Fac Was Fac Fac Fac Upp Upp Res DSF Res Acc Combat Hostiles Destroyed 30 | . 5 10 7 . . 3 2 1 . 1 . 1 . . . . . . . Guns 28 | . 5 10 7 . . 3 2 . . . . 1 . . . . . . . AOE 2 | . . . . . . . . 1 . 1 . . . . . . . . . Classes Destroyed 10 | 3 1 2 2 . . . . 1 . 1 . . . . . . . . . Worker 4 | 2 . 1 . . . . 1 . . . . . . . . . . . . Builder 1 | . . 1 . . . . . . . . . . . . . . . . . Tunneler 9 | 5 1 2 1 . . . . . . . . . . . . . . . . Recycler 3 | 1 2 . . . . . . . . . . . . . . . . . . Watcher 3 | . . . 2 . . . 1 . . . . . . . . . . . . Swarmer 14 | . . 9 4 . . . . . . . . 1 . . . . . . . Grunt 11 | . 5 1 1 . . 3 1 . . . . . . . . . . . . Sentry 3 | . . . 2 . . . 1 . . . . . . . . . . . . Programmer 1 | . . . . . . . . 1 . . . . . . . . . . . Compactor 1 | . . . . . . . . . . 1 . . . . . . . . . Best Kill Streak 8 | 8 4 3 4 . . 3 1 1 . 1 . 1 . . . . . . . Combat Bots Only 4 | . 2 3 4 . . 3 1 1 . 1 . 1 . . . . . . . Max Kills in Single Turn 1 | 1 1 1 1 . . 1 1 1 . 1 . 1 . . . . . . . Gunslinging . | . . . . . . . . . . . . . . . . . . . . Exploded 1 | . . . . . . . . 1 . 1 . . . . . . . . . Melee . | . . . . . . . . . . . . . . . . . . . . Uniques/NPCs Destroyed . | . . . . . . . . . . . . . . . . . . . . Combat | -11 -10 -10 -9 -9 -9 -8 -8 -7 -6 -6 -6 -5 -4 -4 -4 -3 -3 -2 -1 -------- Run | Yrd Mat Min Mat Min Exi Min Mat Fac Fac Was Fac Fac Fac Upp Upp Res DSF Res Acc Hostile Shots Fired 580 | . 29 37 40 . . 18 68 41 . . . 14 8 19 . 4 5 6 291 Missed 259 | . 7 12 5 . . 5 34 24 . . . 7 3 10 . 1 2 3 146 Damage Taken 5968 | . 299 246 437 . . 229 643 234 . . 40 107 71 121 . 62 160 73 3246 Core 2123 | . 16 17 81 . . . 251 41 . . . 21 . 17 . 23 48 . 1608 Absorbed by Shields 210 | . . . . . . . . . . . . 38 26 46 . . 13 . 87 Regen/Repaired (Parts) 48 | . . . . . . . . . . 3 . 45 . . . . . . . Core Remaining (%) 90 | 100 . 86 . . . 79 54 94 . . 100 97 . . 98 . 94 100 . Volleys Fired 169 | 16 29 37 36 . . 13 15 6 . 4 . 4 2 . . . . 4 3 Largest 2 | 2 2 2 2 . . 2 2 1 . 1 . 1 1 . . . . 2 1 Hottest 163 | 40 40 40 85 . . 85 130 36 . 36 . 75 75 . . . . 163 120 Shots Fired 301 | 32 58 74 56 . . 25 29 6 . 4 . 4 2 . . . . 8 3 Gun 284 | 32 58 74 56 . . 25 29 . . . . 4 2 . . . . 4 . Cannon 7 | . . . . . . . . . . . . . . . . . . 4 3 Launcher 10 | . . . . . . . . 6 . 4 . . . . . . . . . Special . | . . . . . . . . . . . . . . . . . . . . Kinetic 232 | 32 58 74 55 . . 12 . . . . . . . . . . . . 1 Thermal 55 | . . . 1 . . 13 29 . . . . 4 2 . . . . 4 2 Explosive 10 | . . . . . . . . 6 . 4 . . . . . . . . . Electromagnetic 4 | . . . . . . . . . . . . . . . . . . 4 . Robot Hit Streak 16 | 5 8 16 16 . . 14 5 7 . 4 . 6 1 . . . . 2 . Robot Miss Streak 6 | 1 3 4 3 . . 1 2 1 . . . 1 1 . . . . 5 6 Penetration Max . | . . . . . . . . . . . . . . . . . . . . Secondary Targets 2 | . . . . . . 2 . . . . . . . . . . . . . Max Gunslinging Chain 1 | . . . . . . 1 . . . . . . . . . . . . . Shots Hit Robots 201 | 19 39 47 38 . . 22 23 3 . 4 . 3 1 . . . . 2 . Core Hits 89 | 11 17 21 16 . . 11 6 3 . 1 . 1 . . . . . 1 1 Critical Kills 2 | 1 1 . . . . . . . . . . . . . . . . . . Critical Parts Destroyed 2 | . 1 . . . . . 1 . . . . . . . . . . . . Critical Strikes 5 | 1 2 . . . . 1 1 . . . . . . . . . . . . Burn 1 | . . . . . . 1 . . . . . . . . . . . . . Destroy 3 | 1 2 . . . . . . . . . . . . . . . . . . Smash 1 | . . . . . . . 1 . . . . . . . . . . . . Melee Attacks 12 | . . . . . . . 7 5 . . . . . . . . . . . Impact 12 | . . . . . . . 7 5 . . . . . . . . . . . Slashing . | . . . . . . . . . . . . . . . . . . . . Piercing . | . . . . . . . . . . . . . . . . . . . . Sneak Attacks 1 | . . . . . . . 1 . . . . . . . . . . . . Combat Hostiles . | . . . . . . . . . . . . . . . . . . . . Follow-up Attacks . | . . . . . . . . . . . . . . . . . . . . Damage Inflicted 3076 | 222 404 494 369 . . 261 517 194 . 434 . 63 20 . . . . 86 12 Guns 2163 | 222 404 492 369 . . 261 310 . . . . 63 20 . . . . 22 . Cannons 64 | . . . . . . . . . . . . . . . . . . 64 . Explosions 628 | . . . . . . . . 194 . 434 . . . . . . . . . Melee 207 | . . . . . . . 207 . . . . . . . . . . . . Ramming 14 | . . 2 . . . . . . . . . . . . . . . . 12 Kinetic 1580 | 222 404 492 369 . . 93 . . . . . . . . . . . . . Thermal 583 | . . . . . . 168 310 . . . . 63 20 . . . . 22 . Explosive 628 | . . . . . . . . 194 . 434 . . . . . . . . . Electromagnetic 64 | . . . . . . . . . . . . . . . . . . 64 . Impact 207 | . . . . . . . 207 . . . . . . . . . . . . Slashing . | . . . . . . . . . . . . . . . . . . . . Piercing . | . . . . . . . . . . . . . . . . . . . . Highest Corruption 3 | . . . . . . . . 2 . . . . 2 2 2 . . . 3 Average Corruption 2 | . . . . . . . . 1 . . . . 1 2 2 . . . 2 Corruption Purged 2 | . . . . . . . . 2 . . . . . . . . . . . Corruption Blocked . | . . . . . . . . . . . . . . . . . . . . Effects 8 | . . . . . . . . 4 . . . . 1 1 . . . . 2 Message Errors 3 | . . . . . . . . 2 . . . . . . . . . . 1 Matter Fused 3 | . . . . . . . . 1 . . . . . 1 . . . . 1 Energy Discharges 1 | . . . . . . . . 1 . . . . . . . . . . . Data Loss (minor) 1 | . . . . . . . . . . . . . 1 . . . . . . Overload Shots . | . . . . . . . . . . . . . . . . . . . . Overflow Damage 136 | . . . . . . . 125 2 . . . . . . . . . 9 . Projectiles 9 | . . . . . . . . . . . . . . . . . . 9 . Explosions 2 | . . . . . . . . 2 . . . . . . . . . . . Melee 125 | . . . . . . . 125 . . . . . . . . . . . . Knockbacks 1 | . . . . . . . 1 . . . . . . . . . . . . Impact 1 | . . . . . . . 1 . . . . . . . . . . . . Kinetic . | . . . . . . . . . . . . . . . . . . . . Secondary . | . . . . . . . . . . . . . . . . . . . . Self-Inflicted Damage 6 | . . . . . . . . . . . . . . . . . . . 6 Shots . | . . . . . . . . . . . . . . . . . . . . Rammed 4 | . . . . . . . . . . . . . . . . . . . 4 Targets Rammed 5 | . . 1 . . . . . . . . . . . . . . . . 4 Kicked 1 | . . 1 . . . . . . . . . . . . . . . . . Crushed . | . . . . . . . . . . . . . . . . . . . . Highest Temperature 587 | . 27 31 42 . . 382 587 100 . 67 . 182 70 2 2 5 . 542 309 Average Temperature 93 | . 10 5 14 . . 192 206 43 . 34 . 96 37 1 1 5 . 86 182 Received Heat Transfer 798 | . 174 72 117 . . 117 126 30 . . . 6 . 24 . 24 . . 108 Effects 20 | . . . . . . 1 12 . . . . . . . . . . 7 . Shutdowns 5 | . . . . . . . 1 . . . . . . . . . . 4 . Energy Bleed 2 | . . . . . . 1 . . . . . . . . . . . 1 . Interference 4 | . . . . . . . 4 . . . . . . . . . . . . Matter Decay 2 | . . . . . . . 2 . . . . . . . . . . . . Short Circuit 2 | . . . . . . . 1 . . . . . . . . . . 1 . Damage (minor) 1 | . . . . . . . . . . . . . . . . . . 1 . Damage (major) 2 | . . . . . . . 2 . . . . . . . . . . . . Damage (core) 2 | . . . . . . . 2 . . . . . . . . . . . . Siege Activations . | . . . . . . . . . . . . . . . . . . . . Robots Corrupted . | . . . . . . . . . . . . . . . . . . . . Combat Hostiles . | . . . . . . . . . . . . . . . . . . . . Parts Fried 2 | . . . . . . . 2 . . . . . . . . . . . . Impact Corruptions 2 | . . . . . . . 2 . . . . . . . . . . . . Robots Melted . | . . . . . . . . . . . . . . . . . . . . Combat Hostiles . | . . . . . . . . . . . . . . . . . . . . Parts Melted . | . . . . . . . . . . . . . . . . . . . . Heat Transferred 1406 | . . . . . . 481 740 . . . . 111 37 . . . . 37 . Parts Sabotaged . | . . . . . . . . . . . . . . . . . . . . Parts Stolen . | . . . . . . . . . . . . . . . . . . . . Parts Stripped . | . . . . . . . . . . . . . . . . . . . . Power Chain Reactions . | . . . . . . . . . . . . . . . . . . . . Alert | -11 -10 -10 -9 -9 -9 -8 -8 -7 -6 -6 -6 -5 -4 -4 -4 -3 -3 -2 -1 ------- Run | Yrd Mat Min Mat Min Exi Min Mat Fac Fac Was Fac Fac Fac Upp Upp Res DSF Res Acc Peak Influence 599 | 40 190 140 196 13 . 40 561 337 164 105 126 270 246 . . 136 102 183 599 Initial 170 | . 26 5 27 13 . . 15 170 164 57 66 36 132 . . 121 102 48 109 Average 108 | 18 68 51 73 13 . 30 227 234 164 92 83 147 178 . . 121 83 124 291 Maximum Alert Level 2 | . . . . . . . 2 1 . . . 1 1 . . . . . 2 Low Security (%) 85 | 100 100 100 100 100 . 100 56 36 100 100 100 80 61 . . 100 100 100 15 Level 1 11 | . . . . . . . 16 63 . . . 19 38 . . . . . 69 Level 2 2 | . . . . . . . 27 . . . . . . . . . . . 14 Level 3 . | . . . . . . . . . . . . . . . . . . . . Level 4 . | . . . . . . . . . . . . . . . . . . . . Level 5 . | . . . . . . . . . . . . . . . . . . . . High Security . | . . . . . . . . . . . . . . . . . . . . Max Security . | . . . . . . . . . . . . . . . . . . . . Squads Dispatched 20 | . 1 . . . . . 5 5 . . 4 1 1 . . . 1 1 1 Investigation 9 | . 1 . . . . . 3 2 . . 2 1 . . . . . . . Extermination 3 | . . . . . . . . 1 . . . . . . . . . 1 1 Reinforcement 6 | . . . . . . . 2 2 . . . . 1 . . . 1 . . Assault . | . . . . . . . . . . . . . . . . . . . . Garrison 2 | . . . . . . . . . . . 2 . . . . . . . . Intercept . | . . . . . . . . . . . . . . . . . . . . Searches Triggered . | . . . . . . . . . . . . . . . . . . . . Construction Impeded . | . . . . . . . . . . . . . . . . . . . . Haulers Reinforced . | . . . . . . . . . . . . . . . . . . . . Active Scanning Responses . | . . . . . . . . . . . . . . . . . . . . Cargo Convoy Interrupts . | . . . . . . . . . . . . . . . . . . . . Stealth | -11 -10 -10 -9 -9 -9 -8 -8 -7 -6 -6 -6 -5 -4 -4 -4 -3 -3 -2 -1 --------- Run | Yrd Mat Min Mat Min Exi Min Mat Fac Fac Was Fac Fac Fac Upp Upp Res DSF Res Acc Distress Signals 13 | . 1 . 1 . . . 2 . . . . 2 1 . . . . 1 5 Communications Jammed . | . . . . . . . . . . . . . . . . . . . . Distress Signals . | . . . . . . . . . . . . . . . . . . . . Times Spotted 164 | . 8 13 10 . . 3 30 6 . 2 . 11 10 7 . 1 6 5 52 Peak Tracking Total 20 | . 2 6 4 . . 3 14 3 . 1 . 7 8 4 . 2 5 3 20 Tactical Retreats 26 | . . 2 . . . . 5 2 . . . 1 1 3 . . 1 2 9 Traps | -11 -10 -10 -9 -9 -9 -8 -8 -7 -6 -6 -6 -5 -4 -4 -4 -3 -3 -2 -1 ------- Run | Yrd Mat Min Mat Min Exi Min Mat Fac Fac Was Fac Fac Fac Upp Upp Res DSF Res Acc Traps Triggered 11 | . 1 . 1 . . . . 1 1 . 1 . 2 . . . 1 1 2 Indirectly . | . . . . . . . . . . . . . . . . . . . . Trap Hack Attempts . | . . . . . . . . . . . . . . . . . . . . Triggered . | . . . . . . . . . . . . . . . . . . . . Disarmed . | . . . . . . . . . . . . . . . . . . . . Reprogrammed . | . . . . . . . . . . . . . . . . . . . . Reused . | . . . . . . . . . . . . . . . . . . . . Traps Extracted . | . . . . . . . . . . . . . . . . . . . . Installed . | . . . . . . . . . . . . . . . . . . . . Triggered 1 | . . . . . . . . . . . . . . 1 . . . . . Machines | -11 -10 -10 -9 -9 -9 -8 -8 -7 -6 -6 -6 -5 -4 -4 -4 -3 -3 -2 -1 ---------- Run | Yrd Mat Min Mat Min Exi Min Mat Fac Fac Was Fac Fac Fac Upp Upp Res DSF Res Acc Machines Disabled 4 | . . . . . . . . 1 . . . 1 . . . . . 1 1 Max in Single Turn 1 | . . . . . . . . 1 . . . . . . . . . 1 1 Garrison Access 2 | . . . . . . . . . 1 . . . 1 . . . . . . Machines Repaired . | . . . . . . . . . . . . . . . . . . . . Machines Dismantled . | . . . . . . . . . . . . . . . . . . . . Machines Sabotaged . | . . . . . . . . . . . . . . . . . . . . Overloaded Fab Kills . | . . . . . . . . . . . . . . . . . . . . Hacking | -11 -10 -10 -9 -9 -9 -8 -8 -7 -6 -6 -6 -5 -4 -4 -4 -3 -3 -2 -1 --------- Run | Yrd Mat Min Mat Min Exi Min Mat Fac Fac Was Fac Fac Fac Upp Upp Res DSF Res Acc Machines Accessed 41 | . 6 . 1 . . . 6 4 1 . 5 6 4 1 . 1 . 3 3 Terminals 29 | . 5 . . . . . 6 4 . . 3 3 3 . . 1 . 1 3 Fabricators 2 | . . . . . . . . . . . 1 1 . . . . . . . Repair Stations 1 | . . . . . . . . . . . . 1 . . . . . . . Recycling Units 3 | . 1 . 1 . . . . . . . 1 . . . . . . . . Scanalyzers 1 | . . . . . . . . . . . . . . . . . . 1 . Garrison Access 4 | . . . . . . . . . 1 . . 1 1 . . . . 1 . Total Hacks 85 | . 16 . 1 . . . 16 7 2 . 12 13 6 1 . 1 . 7 3 Successful 30 | . 4 . 1 . . . 2 . 1 . 6 7 3 1 . 1 . 3 1 Failed 55 | . 12 . . . . . 14 7 1 . 6 6 3 . . . . 4 2 Catastrophic 19 | . 6 . . . . . 6 3 1 . 1 . 1 . . . . . 1 Database Lockouts . | . . . . . . . . . . . . . . . . . . . . Manual 38 | . 6 . . . 1 . 16 4 . . 5 . 3 . . . . 1 2 Terminals 62 | . 13 . . . . . 16 7 . . 8 6 5 . . 1 . 3 3 Fabricators 6 | . . . . . . . . . . . 3 3 . . . . . . . Repair Stations 2 | . . . . . . . . . . . . 2 . . . . . . . Recycling Units 5 | . 3 . 1 . . . . . . . 1 . . . . . . . . Scanalyzers 2 | . . . . . . . . . . . . . . . . . . 2 . Garrison Access 7 | . . . . . . . . . 2 . . 2 1 . . . . 2 . Terminal Hacks 17 | . 2 . . . . . 2 . . . 4 3 2 1 . 1 . 1 1 Part Schematic 3 | . 1 . . . . . 1 . . . 1 . . . . . . . . Open Door 1 | . . . . . . . . . . . . . . 1 . . . . . Open DSF 3 | . . . . . . . . . . . 1 1 . . . 1 . . . Level Access Points 2 | . . . . . . . . . . . . 1 . . . . . . 1 Branch Access Points 1 | . . . . . . . . . . . . . 1 . . . . . . Emergency Access Points 2 | . . . . . . . . . . . . . 1 . . . . 1 . Fabricator Index 1 | . . . . . . . 1 . . . . . . . . . . . . Alert Level 1 | . . . . . . . . . . . 1 . . . . . . . . Patrol Status 1 | . . . . . . . . . . . . 1 . . . . . . . Recall Extermination 1 | . . . . . . . . . . . 1 . . . . . . . . Registered Components 1 | . 1 . . . . . . . . . . . . . . . . . . Fabricator Hacks 3 | . . . . . . . . . . . 1 2 . . . . . . . Load Schematic 2 | . . . . . . . . . . . 1 1 . . . . . . . Build 1 | . . . . . . . . . . . . 1 . . . . . . . Repair Station Hacks 2 | . . . . . . . . . . . . 2 . . . . . . . Scan Component 1 | . . . . . . . . . . . . 1 . . . . . . . Repair 1 | . . . . . . . . . . . . 1 . . . . . . . Recycling Unit Hacks 4 | . 2 . 1 . . . . . . . 1 . . . . . . . . Report Inventory 3 | . 1 . 1 . . . . . . . 1 . . . . . . . . Retrieve Components 1 | . 1 . . . . . . . . . . . . . . . . . . Scanalyzer 2 | . . . . . . . . . . . . . . . . . . 2 . Insert Component 1 | . . . . . . . . . . . . . . . . . . 1 . Analyze 1 | . . . . . . . . . . . . . . . . . . 1 . Garrison Access Hacks 2 | . . . . . . . . . 1 . . . 1 . . . . . . Seal Access 2 | . . . . . . . . . 1 . . . 1 . . . . . . Unauthorized Hacks . | . . . . . . . . . . . . . . . . . . . . Terminals . | . . . . . . . . . . . . . . . . . . . . Fabricators . | . . . . . . . . . . . . . . . . . . . . Repair Stations . | . . . . . . . . . . . . . . . . . . . . Recycling Units . | . . . . . . . . . . . . . . . . . . . . Scanalyzers . | . . . . . . . . . . . . . . . . . . . . Garrison Access . | . . . . . . . . . . . . . . . . . . . . Data Cores Recovered . | . . . . . . . . . . . . . . . . . . . . Used . | . . . . . . . . . . . . . . . . . . . . Hacking Detections 31 | . 5 . 1 . . . 5 4 . . 5 4 2 . . . . 2 3 Full Trace Events 11 | . 1 . . . . . 5 2 . . 2 1 . . . . . . . Feedback Events . | . . . . . . . . . . . . . . . . . . . . Feedback Blocked . | . . . . . . . . . . . . . . . . . . . . Robot Schematics Acquired . | . . . . . . . . . . . . . . . . . . . . Robots Built 1 | . . . . . . . . . . . . 1 . . . . . . . Authchips . | . . . . . . . . . . . . . . . . . . . . Time 76 | . . . . . . . . . . . . 76 . . . . . . . Total Robot Build Rating 5 | . . . . . . . . . . . . 5 . . . . . . . Part Schematics Acquired 3 | . 1 . . . . . 1 . . . . . . . . . . 1 . Parts Built . | . . . . . . . . . . . . . . . . . . . . Authchips . | . . . . . . . . . . . . . . . . . . . . Time . | . . . . . . . . . . . . . . . . . . . . Total Part Build Rating . | . . . . . . . . . . . . . . . . . . . . Parts Repaired 1 | . . . . . . . . . . . . 1 . . . . . . . Time 19 | . . . . . . . . . . . . 19 . . . . . . . Parts Recycled . | . . . . . . . . . . . . . . . . . . . . Recycled Matter . | . . . . . . . . . . . . . . . . . . . . Retrieved Matter . | . . . . . . . . . . . . . . . . . . . . Retrieved Components 6 | . 6 . . . . . . . . . . . . . . . . . . Parts Scanalyzed 1 | . . . . . . . . . . . . . . . . . . 1 . Part Schematics Acquired 1 | . . . . . . . . . . . . . . . . . . 1 . Parts Damaged . | . . . . . . . . . . . . . . . . . . . . Bothacking | -11 -10 -10 -9 -9 -9 -8 -8 -7 -6 -6 -6 -5 -4 -4 -4 -3 -3 -2 -1 ------------ Run | Yrd Mat Min Mat Min Exi Min Mat Fac Fac Was Fac Fac Fac Upp Upp Res DSF Res Acc Used RIF Installer . | . . . . . . . . . . . . . . . . . . . . Robots Hacked . | . . . . . . . . . . . . . . . . . . . . Non-combat . | . . . . . . . . . . . . . . . . . . . . Combat . | . . . . . . . . . . . . . . . . . . . . Robot Hacks Applied . | . . . . . . . . . . . . . . . . . . . . Relay Couplers Released . | . . . . . . . . . . . . . . . . . . . . Fabnet Peak Effective % . | . . . . . . . . . . . . . . . . . . . . Robots Rewired . | . . . . . . . . . . . . . . . . . . . . Allies Hacked . | . . . . . . . . . . . . . . . . . . . . Hacks Repelled . | . . . . . . . . . . . . . . . . . . . . Allies | -11 -10 -10 -9 -9 -9 -8 -8 -7 -6 -6 -6 -5 -4 -4 -4 -3 -3 -2 -1 -------- Run | Yrd Mat Min Mat Min Exi Min Mat Fac Fac Was Fac Fac Fac Upp Upp Res DSF Res Acc Total Allies 20 | . . . . . . . . . . 19 . 1 . . . . . . . Largest Group 19 | . . . . . . . . . . 19 16 2 . . . . . . . Highest-Rated Group 684 | . . . . . . . . . . 684 599 69 . . . . . . . Highest-Rated Ally 50 | . . . . . . . . . . 50 50 50 . . . . . . . Total Orders . | . . . . . . . . . . . . . . . . . . . . Ally Attacks 160 | . . . . . . . . . . 134 23 3 . . . . . . . Total Damage 5756 | . . . . . . . . . . 4848 607 301 . . . . . . . Kills 14 | . . . . . . . . . . 7 3 4 . . . . . . . Allies Corrupted . | . . . . . . . . . . . . . . . . . . . . Allies Melted . | . . . . . . . . . . . . . . . . . . . . Intel | -11 -10 -10 -9 -9 -9 -8 -8 -7 -6 -6 -6 -5 -4 -4 -4 -3 -3 -2 -1 ------- Run | Yrd Mat Min Mat Min Exi Min Mat Fac Fac Was Fac Fac Fac Upp Upp Res DSF Res Acc Robot Analysis Total . | . . . . . . . . . . . . . . . . . . . . Derelict Logs Recovered 3 | . . 1 . 1 . . . . . . . . . 1 . . . . . Drone Launches 1 | . . . . . . . 1 . . . . . . . . . . . . Drone Recoveries . | . . . . . . . . . . . . . . . . . . . . Exploration | -11 -10 -10 -9 -9 -9 -8 -8 -7 -6 -6 -6 -5 -4 -4 -4 -3 -3 -2 -1 ------------- Run | Yrd Mat Min Mat Min Exi Min Mat Fac Fac Was Fac Fac Fac Upp Upp Res DSF Res Acc Turns Passed 6185 | 179 715 1171 539 250 266 214 410 389 51 238 166 308 119 244 197 28 47 345 309 Spaces Moved 7779 | 88 367 576 298 196 218 100 618 672 111 273 370 459 239 634 574 78 73 932 903 Core 124 | 35 . . . . . . . . . . . . . . . . . . 89 Treads 662 | 53 367 242 . . . . . . . . . . . . . . . . . Legs 1146 | . . 334 298 196 218 100 . . . . . . . . . . . . . Wheels . | . . . . . . . . . . . . . . . . . . . . Hover . | . . . . . . . . . . . . . . . . . . . . Flight 5847 | . . . . . . . 618 672 111 273 370 459 239 634 574 78 73 932 814 Fastest Speed 19 | 50 160 160 120 120 120 120 50 50 42 42 42 42 42 28 28 28 25 22 19 Average Speed 63 | 133 160 177 128 120 120 173 50 50 42 56 42 42 42 36 28 28 28 24 24 Slowest Speed 600 | 160 160 190 190 120 120 260 50 50 42 600 42 42 42 42 28 28 111 102 105 Overloaded Moves . | . . . . . . . . . . . . . . . . . . . . Propulsion Burnouts . | . . . . . . . . . . . . . . . . . . . . Robots Hopped 45 | . . . . . . . 11 2 3 . 1 3 2 3 . 1 . 2 17 Cave-ins Triggered . | . . . . . . . . . . . . . . . . . . . . Exploration Rate (%) 41 | 5 55 96 27 55 61 20 71 22 3 95 13 13 10 87 64 3 71 22 28 Regions Visited 19 Branch Regions 6 Pre-discovered Areas 1 | . . 1 . . . . . . . . . . . . . . . . . Known Exits Taken 15 | . 1 1 1 1 1 1 1 1 . . 1 1 1 1 1 1 . 1 . Unknown Exits Taken 1 | 1 . . . . . . . . . . . . . . . . . . . Scrap Searched 5 | . . 1 . 1 . . . . . . . . . 2 1 . . . . Spaces Dug 7 | . . . . . . . 3 4 . . . . . . . . . . . Terrain Destroyed 33 | . . . . . . . 3 19 . 11 . . . . . . . . . Melee 7 | . . . . . . . 3 4 . . . . . . . . . . . Projectile . | . . . . . . . . . . . . . . . . . . . . AOE 26 | . . . . . . . . 15 . 11 . . . . . . . . . Terrain Rammed . | . . . . . . . . . . . . . . . . . . . . Walls Destroyed . | . . . . . . . . . . . . . . . . . . . . Machines Disabled . | . . . . . . . . . . . . . . . . . . . . Actions | -11 -10 -10 -9 -9 -9 -8 -8 -7 -6 -6 -6 -5 -4 -4 -4 -3 -3 -2 -1 --------- Run | Yrd Mat Min Mat Min Exi Min Mat Fac Fac Was Fac Fac Fac Upp Upp Res DSF Res Acc Total 8673 | 120 444 662 413 211 224 119 663 708 113 352 380 568 253 641 613 83 98 1039 969 Wait 381 | . 24 28 34 16 . . 14 3 . 59 . 96 . 1 25 . . 50 31 Move 7676 | 87 366 575 297 195 217 99 598 667 105 272 367 453 234 627 573 75 72 927 870 Hop 40 | . . . . . . . 8 2 3 . 1 2 2 3 . 1 . 2 16 Pick Up 141 | 11 16 6 22 . 2 3 9 11 2 5 7 5 4 2 5 2 4 18 7 Fast Attach . | . . . . . . . . . . . . . . . . . . . . Attach 62 | 6 2 2 4 . . 3 3 2 2 1 . 3 2 6 3 2 4 5 12 Detach . | . . . . . . . . . . . . . . . . . . . . Swap 36 | . 3 4 4 . 1 . 6 4 . 5 1 1 1 . 1 . . 4 1 Drop 91 | . 4 9 16 . 4 1 3 8 1 6 4 4 2 2 6 3 . 11 7 Fire 169 | 16 29 37 36 . . 13 15 6 . 4 . 4 2 . . . . 4 3 Melee 12 | . . . . . . . 7 5 . . . . . . . . . . . Ram 4 | . . . . . . . . . . . . . . . . . . . 4 Kick 1 | . . 1 . . . . . . . . . . . . . . . . . Crush . | . . . . . . . . . . . . . . . . . . . . Escape Stasis 60 | . . . . . . . . . . . . . 6 . . . 18 18 18 Rewire . | . . . . . . . . . . . . . . . . . . . . Trap . | . . . . . . . . . . . . . . . . . . . . Miscellaneous . | . . . . . . . . . . . . . . . . . . . . Route ------- -11/Scrapyard -10/Materials (discovered 3 exits: *Mat / *Min x2) -10/Mines (discovered 2 exits: *Mat x2) -9/Materials -9/Mines -9/Exiles -8/Mines -8/Materials -7/Factory -6/Factory -6/Waste -6/Factory -5/Factory (discovered 4 exits: *Fac x4) -4/Factory (discovered 3 exits: *Upp x2 / Arm) -4/Upper Caves -4/Upper Caves -3/Research -3/DSF -2/Research -1/Access (discovered 1 exit: Sur) History --------- Turn | Location | Event 12 | -11/Scrapyard | Discovered new exit (range 15) 180 | -11/Scrapyard | Entered Materials 304 | -10/Materials | Discovered new exit (range 16) 309 | -10/Materials | Build established: Mutant 639 | -10/Materials | Discovered new exit (range 16) 663 | -10/Materials | Identified exit to Materials 772 | -10/Materials | Identified exit to Mines 780 | -10/Materials | Derelicts attacked the area 824 | -10/Materials | Discovered exit to Mines (range 4) 895 | -10/Materials | Entered Mines 896 | -10/Mines | Learned location of Storage (-7) 972 | -10/Mines | Learned Materials machine intel 1117 | -10/Mines | Found a hidden stash of uninstalled traps 1143 | -10/Mines | Discovered exit to Materials (range 14) 1417 | -10/Mines | Discovered exit to Materials (range 8) 2066 | -10/Mines | Entered Materials 2066 | -9/Materials | Evolved 2 slots: Propulsion x1, Utility x1 2067 | -9/Materials | Loaded intel: 50 machine locations 2281 | -9/Materials | Discovered new exit (range 9) 2289 | -9/Materials | Identified exit to Mines 2605 | -9/Materials | Entered Mines 2651 | -9/Mines | Learned Materials stockpile data 2663 | -9/Mines | Met a Derelict bent on vengeance 2851 | -9/Mines | Deemed a non-threat by the Exiles lab entrance 2851 | -9/Mines | Discovered new exit (range 5) 2854 | -9/Mines | Identified exit to Exiles 2855 | -9/Mines | Entered Exiles 2883 | -9/Exiles | Met 8R-AWN 2905 | -9/Exiles | Met EX-HEX 2939 | -9/Exiles | Met EX-BIN 2954 | -9/Exiles | Aligned with FarCom system 2955 | -9/Exiles | Given EX-Vault access code 2983 | -9/Exiles | Opened EX-Vault 2993 | -9/Exiles | Found Prototype Flight Unit 2997 | -9/Exiles | Found Prototype Device 3022 | -9/Exiles | Warned to stay clear of 0b10 Research branches 3059 | -9/Exiles | Met EX-DEC 3111 | -9/Exiles | Discovered new exit (range 10) 3120 | -9/Exiles | Identified exit to Mines 3121 | -9/Exiles | Stole two prototypes: Flying Fortress v7, Supersonic Drone Bay 3121 | -9/Exiles | Entered Mines 3215 | -8/Mines | Lost 4 parts (1p2n1w) 3320 | -8/Mines | Discovered new exit (range 9) 3333 | -8/Mines | Identified exit to Materials 3335 | -8/Mines | Entered Materials 3335 | -8/Materials | Evolved 2 slots: Propulsion x1, Utility x1 3337 | -8/Materials | Identified Flying Fortress v7 3338 | -8/Materials | Identified Supersonic Drone Bay 3704 | -8/Materials | Discovered new exit (range 12) 3744 | -8/Materials | Identified exit to Factory 3745 | -8/Materials | Entered Factory 3745 | -7/Factory | Evolved 2 slots: Power x1, Utility x1 3747 | -7/Factory | FarCom data flow suspended 4024 | -7/Factory | Found Prototype Launcher 4129 | -7/Factory | Discovered new exit (range 12) 4134 | -7/Factory | Identified exit to Factory 4134 | -7/Factory | Entered another Factory area 4134 | -6/Factory | Evolved 2 slots: Propulsion x1, Utility x1 4185 | -6/Factory | Sucked down chute 4185 | -6/Factory | Entered Waste 4193 | -6/Waste | Spotted C-40 Crusher 4195 | -6/Waste | Spotted C-40 Crusher 4201 | -6/Waste | Warlord forces began an assault 4209 | -6/Waste | Allies destroyed C-40 Crusher 4278 | -6/Waste | Spotted C-40 Crusher 4289 | -6/Waste | Allies destroyed C-40 Crusher 4309 | -6/Waste | Spotted C-40 Crusher 4318 | -6/Waste | Lost 3 allies 4324 | -6/Waste | Destroyed C-40 Crusher 4333 | -6/Waste | Spotted C-40 Crusher 4384 | -6/Waste | Discovered new exit (range 12) 4403 | -6/Waste | Identified exit to Factory 4423 | -6/Waste | Entered Factory 4423 | -6/Factory | Accompanied by 16 allies 4445 | -6/Factory | Garrison activated, responded to threat 4497 | -6/Factory | Lost 7 allies 4574 | -6/Factory | Discovered new exit (range 14) 4580 | -6/Factory | Identified exit to Factory 4589 | -6/Factory | Entered another Factory area 4589 | -5/Factory | Accompanied by 1 ally 4589 | -5/Factory | Evolved 2 slots: Utility x2 4695 | -5/Factory | Fabricated R-10 Processor? 4785 | -5/Factory | Repaired Lgt. Nuclear Core 4845 | -5/Factory | Build established: Hacker-Mutant 4863 | -5/Factory | Identified exit to Factory 4897 | -5/Factory | Entered another Factory area 4897 | -4/Factory | Evolved 2 slots: Power x1, Propulsion x1 4927 | -4/Factory | Identified exit to Upper Caves 4927 | -4/Factory | Identified exit to Armory 4943 | -4/Factory | Spotted B-86 Titan 5016 | -4/Factory | Entered Upper Caves 5062 | -4/Upper Caves | Learned Research emergency access door positions 5199 | -4/Upper Caves | Discovered new exit (range 11) 5201 | -4/Upper Caves | Identified exit to Upper Caves 5260 | -4/Upper Caves | Entered another Upper Caves area 5288 | -4/Upper Caves | Discovered new exit (range 16) 5289 | -4/Upper Caves | Encountered a Warlord checkpoint 5324 | -4/Upper Caves | Identified exit to Research 5457 | -4/Upper Caves | Entered Research 5457 | -3/Research | Evolved 2 slots: Propulsion x1, Utility x1 5459 | -3/Research | Build established: Hacker-Sprinter 5483 | -3/Research | Identified exit to DSF 5485 | -3/Research | Entered DSF 5503 | -3/DSF | Additional patrols routed to DSF 5504 | -3/DSF | Discovered new exit (range 15) 5522 | -3/DSF | Lost 3 parts (1n2u) 5532 | -3/DSF | Entered Research 5532 | -2/Research | Evolved 2 slots: Propulsion x1, Weapon x1 5586 | -2/Research | Spotted B-90 Cyclops 5654 | -2/Research | Discovered new exit (range 11) 5707 | -2/Research | Identified exit to Access 5754 | -2/Research | Spotted B-90 Cyclops 5877 | -2/Research | Entered Access 5877 | -1/Access | Evolved 2 slots: Propulsion x1, Utility x1 5885 | -1/Access | Identified exit to Surface 5954 | -1/Access | Spotted B-99 Colossus 6157 | -1/Access | Core integrity fell below 50% 6180 | -1/Access | Core integrity fell below 20% 6181 | -1/Access | Lost 19 parts (3p9n7u) 6186 | -1/Access | Destroyed by G-73 Enforcer with Phase Gun Last Messages --------------- 06127_ ALERT: Rogue bot located, Programmers report to Access Zone 2O. 06127_ K-01 Serf destroyed. 06130_ K-01 Serf collects debris. 06135_ Slug penetrates Wall. 06135_ Q-thruster destroyed. 06135_ Slug penetrates Wall. 06142_ W-44 Eye sends out distress signal. 06150_ Imp. Signal Interpreter destroyed. 06155_ Slug penetrates Wall. 06158_ W-44 Eye sends out distress signal. 06159_ Penetrated by Slug. 06178_ Slammed into S-43 Plague. 06179_ VUP3GZLBFQ28VORVHY6PTI 06179_ Slammed into S-43 Plague. 06181_ S-43 Plague destroyed. 06182_ P-80 Master resets S-43 Plague, system corruption cleaned. 06182_ Acquired Xenon Bombardment Thruster. 06185_ K-01 Serf destroyed. Map ----- +----------------------------------------------------+ | ##########+#############+####????????????????????? | | #????????????????????? | | #????????????????????? | | #????????????????????? | | #????????????????????? | | #????????????????????? | | #????????????????????? | | #????????????????????? | | ###/################# #????????????????????? | | # #??????#* #????????????????????? | | # #??????#%= #????????????????????? | | # """"" ""#??????# #????????????????????? | | # """"" ""# ???# #????????????????????? | | # """"" S"# ??# #????????????????????? | | # """"" """# ??# #????????????????????? | | # """"" """# ?# ##################???? | | # """# # # #???? | | / # # b # #???? | | # # * g g pss/ #???? | | # #??????# g s# """"" #???? | | # #??????# % #"""""""" #???? | | ##############??????# #"""""""" #???? | | ????????????????????# # """"" #???? | | ????????????????????# #= #???? | | ????????????????????# w# #???? | | ????????????????????# @ ##################???? | | ????????????????????# #????????????????????? | | ????????????????????# #????????????????????? | | #????????????######## u#????????????????????? | | ??? #????????????????????? | | ?? ##############???????? | | ?? # #???????? | | ??? # #???????? | | ???? # !!! #???????? | | ???? # !!! #???????? | | ????? A # !! #???????? | | ###### ??????######## # #???????? | | ????????????????????# R# #???????? | | ????????????????????# # #???????? | | ????????????????????# t + #???????? | | ????????????????????# # #???????? | | ????????????????????# # #???????? | | ????????????????????# # #???????? | | ????????????????????# ################?????? | | ????????????????????# #?# #?????? | | ????????????????????# ### #?????? | | ????????????????????+ + #?????? | | ??????????????????? # ### #?????? | | ?????????????????? # #?# #?????+ | | ?????????????????? ?# #?# " #?????# | +----------------------------------------------------+ Best States ------------- Heat Dissipation 142 Coolant Potential 100 Energy Generation 57 Energy Capacity 445 Matter Stores 300 Matter Capacity 300 Sight Range 20 Robot Scan Range 15 Terrain Scan Density 10 Jamming Range 16 Power Amplification 30 Base Temperature (-) 200 Armor Coverage 225 Evasion (%) 66 Targeting Accuracy 6 Recoil Reduction 2 Offensive Hacking 48 Item Schematics ----------------- Signal Interpreter | -10/Materials | Hacked Hacking Suite | -8/Materials | Hacked HERF Cannon | -2/Research | Scanalyzed Robot Schematics ------------------ None Fabricated ------------ R-10 Processor | x1 | -5/Factory | Preloaded Alien Tech Used ----------------- None Achievements -------------- None Challenges ------------ None Game ------ Seed InsulationCatalystDatajack Manual? 0 Play Time 01:52:59 Cumulative 24.7 hours Start 2024.04.21 @ 23:35:31 End 2024.04.22 @ 01:26:17 Sessions 1 Manual Loads 0 Difficulty Rogue Special Mode None Game No. 26 Rogue 11 Adventurer 11 Explorer 4 Win Type - Total 1 Types 1/0/0/0/0/0/0/0/0 Lore% 28 Gallery% 31 Achievement% 29 Wizard Run 0 Options --------- Layout 1 ASCII 0 Keyboard 0 Movement Numpad Keybinds 0 Fullscreen 1 Font 20/SmallcapsGlow Map View 54x42 Zoom Use 0% Tactical HUD 1 Map Filters NONE Filters NONE Steam 1 RUN: 75bc4363-5e61-41d2-a212-d7ed8491e0a4